bitfinex/quotes_SOLUSD_20230102
["timestamp","ask_amount","ask_price","bid_price","bid_amount"]
[1672670815168,30.0,11.122,11.111,87.6]
[1672670815806,209.8266,11.124,11.112,30.0]
[1672670816010,142.3066,11.124,11.113,87.58]
[1672670817172,142.3066,11.124,11.113,103.38730786]
[1672670818547,67.47,11.131,11.113,103.38730786]
[1672670818745,184.3784,11.133,11.114,47.0]
[1672670818957,30.0,11.132,11.116,30.0]
[1672670819281,30.0,11.132,11.117,84.56]
[1672670819492,30.0,11.132,11.118,50.0]
[1672670819687,30.0,11.132,11.12,30.0]
[1672670819899,30.0,11.132,11.121,87.53]
[1672670821930,116.9184,11.133,11.121,103.33730786]
[1672670822451,116.9184,11.133,11.122,30.0]
[1672670822660,116.9184,11.133,11.123,87.52]
[1672670824743,116.9184,11.133,11.124,30.0]
[1672670824955,116.9184,11.133,11.125,67.51]
[1672670826003,116.9184,11.133,11.126,30.0]
[1672670826213,116.9184,11.133,11.127,67.5]
[1672670826434,72.01,11.135,11.126,67.5]
[1672670826648,72.01,11.135,11.124,30.0]
[1672670826649,111.9688,11.137,11.125,67.51]
[1672670827060,30.0,11.136,11.125,67.51]
[1672670827915,17.0,11.135,11.125,67.51]
[1672670829712,30.0,11.136,11.125,67.51]
[1672670830546,30.0,11.136,11.124,67.52]
[1672670830764,141.7848,11.136,11.124,67.52]
[1672670830958,17.0,11.135,11.124,67.52]
[1672670831381,17.0,11.135,11.125,30.0]
[1672670831597,17.0,11.135,11.126,67.5]
[1672670831906,17.0,11.135,11.124,67.52]
[1672670832120,30.0,11.134,11.124,67.52]
[1672670833173,30.0,11.132,11.124,67.52]
[1672670834024,30.0,11.132,11.123,20.0]
[1672670834216,30.0,11.132,11.122,20.0]
[1672670834426,30.0,11.132,11.123,67.52]
[1672670837171,115.7013,11.133,11.123,67.52]
[1672670837889,47.0,11.132,11.123,67.52]
[1672670838311,17.0,11.132,11.123,67.52]
[1672670838739,30.0,11.132,11.123,67.52]
[1672670840009,17.0,11.131,11.123,67.52]
[1672670849259,17.0,11.131,11.122,20.0]
[1672670851874,9.5,11.131,11.122,20.0]
[1672670852203,30.0,11.129,11.118,184.3168]
[1672670852400,30.0,11.127,11.111,115.1727]
[1672670852609,67.5,11.126,11.112,50.0]
[1672670852825,30.0,11.125,11.113,67.58]
[1672670853035,30.0,11.125,11.113,83.38730786]
[1672670853357,30.0,11.123,11.113,67.58]
[1672670853781,30.0,11.123,11.112,67.59]
[1672670853992,30.0,11.121,11.112,67.59]
[1672670854207,30.0,11.121,11.113,20.0]
[1672670854514,30.0,11.121,11.114,67.58]
[1672670854919,111.2059,11.122,11.114,67.58]
[1672670856704,111.2059,11.122,11.112,67.59]
[1672670856925,111.2059,11.122,11.113,20.0]
[1672670857230,111.2059,11.122,11.114,67.58]
[1672670859359,30.0,11.121,11.114,67.58]
[1672670860079,111.2059,11.122,11.114,67.58]
[1672670860823,111.2059,11.122,11.114,83.38730786]
[1672670861449,30.0,11.121,11.114,67.58]
[1672670863244,111.2059,11.122,11.114,67.58]
[1672670877744,30.0,11.121,11.114,67.58]
[1672670879234,111.2059,11.122,11.114,67.58]
[1672670887854,30.0,11.121,11.113,20.0]
[1672670889213,133.9136,11.122,11.113,20.0]
[1672670890788,201.4436,11.122,11.113,20.0]
[1672670891206,133.9136,11.122,11.113,20.0]
[1672670892477,133.9136,11.122,11.114,67.58]
[1672670896071,133.9136,11.122,11.115,30.0]
[1672670896467,133.9136,11.122,11.115,110.46569377]
[1672670896700,133.9136,11.122,11.115,80.46569377]
[1672670897517,133.9136,11.122,11.116,15.80730786]
[1672670897729,133.9136,11.122,11.116,83.36730786]
[1672670898255,133.9136,11.122,11.116,15.80730786]
[1672670898465,133.9136,11.122,11.115,147.27737787]
[1672670898466,133.9136,11.122,11.117,67.56]
[1672670898680,133.9136,11.122,11.116,83.36730786]
[1672670898892,133.9136,11.122,11.116,67.56]
[1672670902570,133.9136,11.122,11.115,147.27737787]
[1672670915839,133.9136,11.122,11.115,66.8116841]
[1672670916047,133.9136,11.122,11.113,145.19346666]
[1672670916257,30.0,11.121,11.113,145.19346666]
[1672670916666,9.19,11.12,11.113,20.0]
[1672670918461,30.0,11.118,11.113,20.0]
[1672670918778,30.0,11.118,11.109,67.61]
[1672670918992,30.0,11.118,11.107,67.62]
[1672670919194,141.7045,11.118,11.107,67.62]
[1672670919814,23.854,11.117,11.107,67.62]
[1672670920452,30.0,11.116,11.107,67.62]
[1672670921069,54.467,11.116,11.107,67.62]
[1672670921728,54.467,11.116,11.107,83.42730786]
[1672670923221,54.467,11.116,11.107,67.62]
[1672670926996,24.467,11.116,11.107,67.62]
[1672670927421,24.467,11.116,11.109,30.0]
[1672670927609,24.467,11.116,11.11,87.6]
[1672670928031,9.19,11.12,11.11,87.6]
[1672670928474,144.5667,11.121,11.11,87.6]
[1672670928867,114.5667,11.121,11.11,87.6]
[1672670929091,114.5667,11.121,11.111,30.0]
[1672670929092,47.0367,11.121,11.111,30.0]
[1672670929308,47.0367,11.121,11.112,87.59]
[1672670929620,47.0367,11.121,11.113,30.0]
[1672670929941,47.0367,11.121,11.114,67.58]
[1672670930169,24.1502,11.121,11.114,67.58]
[1672670930555,24.1502,11.121,11.113,67.58]
[1672670932881,24.1502,11.121,11.113,136.03339436]
[1672670938663,54.1502,11.121,11.113,136.03339436]
[1672670939820,24.1502,11.121,11.113,136.03339436]
[1672670941088,54.1502,11.121,11.113,136.03339436]
[1672670943090,39.12,11.12,11.112,20.0]
[1672670943405,39.12,11.12,11.111,20.0]
[1672670943818,30.0,11.118,11.111,20.0]
[1672670945623,30.0,11.118,11.111,87.6]
[1672670946144,30.0,11.118,11.111,20.0]
[1672670950563,30.0,11.118,11.111,87.6]
[1672670950757,30.0,11.118,11.111,20.0]
[1672670958027,106.66,11.12,11.111,20.0]
[1672670962151,76.66,11.12,11.111,20.0]
[1672670962353,142.4334,11.121,11.113,30.0]
[1672670962764,142.4334,11.121,11.112,97.59]
[1672670963094,142.4334,11.121,11.113,20.0]
[1672670965619,30.0,11.12,11.112,20.0]
[1672670968441,209.9634,11.121,11.112,20.0]
[1672670969722,30.0,11.12,11.112,20.0]
[1672670971607,142.4334,11.121,11.112,20.0]
[1672670976131,30.0,11.12,11.112,20.0]
[1672670977390,142.4334,11.121,11.113,30.0]
[1672670977599,142.4334,11.121,11.114,67.58]
[1672670978210,142.4334,11.121,11.113,67.58]
[1672670980323,142.4334,11.121,11.112,43.7305]
[1672670983794,142.4334,11.121,11.113,67.58]
[1672670990328,142.4334,11.121,11.112,111.3205]
[1672670990730,142.4334,11.121,11.112,233.01819576]
[1672671012295,142.4334,11.121,11.112,248.82550362]
[1672671015357,30.0,11.12,11.112,248.82550362]
[1672671017340,142.4334,11.121,11.112,248.82550362]
[1672671022611,142.4334,11.121,11.112,248.7615577]
[1672671022818,30.0,11.12,11.112,248.7615577]
[1672671023244,142.4334,11.121,11.112,248.7615577]
[1672671030606,142.33596839,11.121,11.112,248.7615577]
[1672671031011,30.0,11.12,11.112,232.95424984]
[1672671032283,142.33596839,11.121,11.112,232.95424984]
[1672671032494,142.33596839,11.121,11.112,248.7615577]
[1672671034596,142.33596839,11.121,11.113,30.0]
[1672671034799,142.33596839,11.121,11.114,67.58]
[1672671039314,142.33596839,11.121,11.113,131.33798595]
[1672671039644,30.0,11.12,11.113,131.33798595]
[1672671040585,30.0,11.12,11.113,63.75798595]
[1672671040800,142.33596839,11.121,11.113,63.75798595]
[1672671041730,142.33596839,11.121,11.114,67.58]
[1672671046781,142.33596839,11.121,11.114,131.33798595]
[1672671046997,142.33596839,11.121,11.114,147.14529381]
[1672671047187,142.33596839,11.121,11.114,79.56529381]
[1672671052562,142.33596839,11.121,11.114,63.75798595]
[1672671058866,142.33596839,11.121,11.113,67.58]
[1672671059080,142.33596839,11.121,11.113,192.59682976]
[1672671059698,142.33596839,11.121,11.114,45.80730786]
[1672671059913,67.49,11.128,11.115,87.57]
[1672671060118,201.5419,11.131,11.116,30.0]
[1672671060325,201.5419,11.131,11.118,30.0]
[1672671060543,201.5419,11.131,11.119,44.9595]
[1672671060860,201.5419,11.131,11.119,106.21834381]
[1672671062020,201.5419,11.131,11.12,30.0]
[1672671062234,201.5419,11.131,11.121,20.0]
[1672671062443,30.0,11.13,11.121,20.0]
[1672671062760,30.0,11.128,11.121,20.0]
[1672671067377,30.0,11.128,11.118,73.56041928]
[1672671067568,30.0,11.126,11.117,116.2839]
[1672671067777,67.51,11.125,11.112,115.5631]
[1672671068011,30.0,11.124,11.112,240.15070786]
[1672671068207,30.0,11.122,11.112,240.15070786]
[1672671068421,30.0,11.122,11.112,199.8511758]
[1672671069055,163.1144,11.122,11.112,199.8511758]
[1672671069468,163.1144,11.122,11.113,20.0]
[1672671069799,163.1144,11.122,11.114,68.48076794]
[1672671071886,133.1144,11.122,11.114,68.48076794]
[1672671076440,133.1144,11.122,11.115,67.57]
[1672671080443,133.1144,11.122,11.115,83.37730786]
[1672671080748,133.1144,11.122,11.115,67.57]
[1672671083994,30.0,11.121,11.115,67.57]
[1672671084203,133.1144,11.122,11.114,136.06076794]
[1672671084853,30.0,11.121,11.114,136.06076794]
[1672671085044,30.0,11.121,11.114,67.58]
[1672671085258,30.0,11.121,11.113,24.1062]
[1672671085259,9.12,11.12,11.113,24.1062]
[1672671085469,30.0,11.118,11.113,24.1062]
[1672671085684,30.0,11.118,11.112,23.9302]
[1672671086012,30.0,11.118,11.113,20.0]
[1672671087994,30.0,11.118,11.109,67.61]
[1672671088331,30.0,11.116,11.107,67.62]
[1672671089148,54.0984,11.116,11.107,67.62]
[1672671091145,54.0984,11.116,11.106,16.35882006]
[1672671091375,54.0984,11.116,11.107,67.62]
[1672671091566,171.3502,11.116,11.107,67.62]
[1672671091776,171.3502,11.116,11.106,16.35882006]
[1672671092404,141.3502,11.116,11.107,67.62]
[1672671092839,141.3502,11.116,11.108,15.80730786]
[1672671093994,30.0,11.115,11.107,67.62]
[1672671094531,30.0,11.115,11.107,83.42730786]
[1672671095687,141.3502,11.116,11.107,83.42730786]
[1672671096615,67.55,11.119,11.107,83.42730786]
[1672671096831,106.66,11.12,11.109,30.0]
[1672671097056,106.66,11.12,11.11,87.6]
[1672671097985,106.66,11.12,11.11,20.0]
[1672671100290,67.54,11.12,11.111,30.0]
[1672671100497,22.5803,11.121,11.111,30.0]
[1672671100498,22.5803,11.121,11.112,20.0]
[1672671100736,22.5803,11.121,11.113,30.0]
[1672671100935,22.5803,11.121,11.113,97.58]
[1672671101150,22.5803,11.121,11.112,103.39730786]
[1672671102496,22.5803,11.121,11.112,87.59]
[1672671103864,52.5803,11.121,11.112,87.59]
[1672671106284,52.5803,11.121,11.112,20.0]
[1672671106493,120.1103,11.121,11.112,20.0]
[1672671108516,52.5803,11.121,11.112,20.0]
[1672671113767,22.5803,11.121,11.112,20.0]
[1672671113982,52.5803,11.121,11.113,67.58]
[1672671114204,52.5803,11.121,11.112,87.59]
[1672671115135,30.0,11.12,11.112,87.59]
[1672671120372,30.0,11.12,11.112,20.0]
[1672671122610,30.0,11.12,11.113,67.58]
[1672671122817,30.0,11.12,11.112,87.59]
[1672671133424,52.5803,11.121,11.112,87.59]
[1672671144587,30.0,11.12,11.112,87.59]
[1672671144779,30.0,11.12,11.112,20.0]
[1672671149934,120.1103,11.121,11.112,20.0]
[1672671151100,30.0,11.12,11.112,20.0]
[1672671151757,39.21,11.12,11.112,20.0]
[1672671167915,90.1103,11.121,11.112,20.0]
[1672671168122,22.5803,11.121,11.113,30.0]
[1672671168331,22.5803,11.121,11.114,67.58]
[1672671169483,22.5803,11.121,11.113,67.58]
[1672671170666,52.5803,11.121,11.113,67.58]
[1672671172767,22.5803,11.121,11.113,67.58]
[1672671174031,52.5803,11.121,11.113,67.58]
[1672671174659,22.5803,11.121,11.113,67.58]
[1672671178749,30.0,11.12,11.113,67.58]
[1672671180536,52.5803,11.121,11.113,67.58]
[1672671181157,22.5803,11.121,11.114,30.0]
[1672671181367,22.5803,11.121,11.115,67.57]
[1672671183362,22.5803,11.121,11.114,30.0]
[1672671183587,22.5803,11.121,11.115,67.57]
[1672671184624,22.5803,11.121,11.113,67.58]
[1672671186535,52.5803,11.121,11.113,67.58]
[1672671187149,30.0,11.12,11.112,43.5048]
[1672671193563,52.5803,11.121,11.112,43.5048]
[1672671196410,30.0,11.12,11.112,43.5048]
[1672671198201,30.0,11.12,11.112,59.31210786]
[1672671198416,30.0,11.12,11.113,67.58]
[1672671198812,30.0,11.12,11.113,83.38730786]
[1672671201678,30.0,11.12,11.113,67.58]
[1672671203148,52.5803,11.121,11.113,67.58]
[1672671212095,52.5803,11.121,11.112,111.0948]
[1672671212296,30.0,11.12,11.112,43.5048]
[1672671214304,67.55,11.119,11.106,0.5515122]
[1672671214495,30.0,11.118,11.106,0.5515122]
[1672671214708,30.0,11.116,11.106,0.5515122]
[1672671214925,30.0,11.114,11.106,0.5515122]
[1672671215145,24.3178,11.113,11.106,0.5515122]
[1672671215457,24.3178,11.113,11.106,16.35882006]
[1672671216066,24.3178,11.113,11.106,83.98882006]
[1672671216277,24.3178,11.113,11.106,68.1815122]
[1672671216491,24.3178,11.113,11.106,0.5515122]
[1672671216717,133.7613,11.113,11.106,0.5515122]
[1672671218399,133.7613,11.113,11.107,67.62]
[1672671218596,133.7613,11.113,11.106,0.5515122]
[1672671222928,30.0,11.112,11.106,0.5515122]
[1672671224612,133.7613,11.113,11.106,0.5515122]
[1672671235323,133.7613,11.113,11.106,83.98882006]
[1672671235543,133.7613,11.113,11.106,68.1815122]
[1672671235948,133.7613,11.113,11.106,0.5515122]
[1672671238676,133.7613,11.113,11.106,16.35882006]
[1672671240799,133.7613,11.113,11.107,30.0]
[1672671241857,133.7613,11.113,11.106,46.35882006]
[1672671242781,67.55,11.119,11.107,87.62]
[1672671243106,30.0,11.12,11.108,45.80730786]
[1672671243304,30.0,11.118,11.108,69.40090786]
[1672671243515,30.0,11.118,11.109,20.0]
[1672671244142,67.55,11.119,11.109,87.61]
[1672671245212,30.0,11.12,11.11,15.80730786]
[1672671245413,30.0,11.12,11.111,20.0]
[1672671247609,30.0,11.12,11.111,35.80730786]
[1672671248661,30.0,11.12,11.111,20.0]
[1672671249519,30.0,11.12,11.111,35.80730786]
[1672671249833,30.0,11.12,11.111,20.0]
[1672671255291,67.53,11.121,11.111,20.0]
[1672671255505,67.53,11.121,11.111,103.40730786]
[1672671256770,53.5071,11.122,11.111,103.40730786]
[1672671257174,53.5071,11.122,11.111,126.78110786]
[1672671261182,53.5071,11.122,11.111,110.9738]
[1672671261504,30.0,11.12,11.111,43.3738]
[1672671277671,67.53,11.121,11.111,43.3738]
[1672671279054,121.0371,11.122,11.111,43.3738]
[1672671279587,121.0371,11.122,11.112,67.59]
[1672671279801,121.0371,11.122,11.113,20.0]
[1672671294603,91.0371,11.122,11.113,20.0]
[1672671294812,23.5071,11.122,11.114,30.0]
[1672671296487,23.5071,11.122,11.113,87.58]
[1672671297248,53.5071,11.122,11.113,87.58]
[1672671297555,39.21,11.12,11.113,20.0]
[1672671298613,67.55,11.119,11.113,20.0]
[1672671298929,30.0,11.118,11.113,20.0]
[1672671301874,30.0,11.118,11.11,67.6]
[1672671302092,30.0,11.118,11.108,67.61]
[1672671302305,113.9019,11.117,11.107,67.62]
[1672671302603,30.0,11.116,11.107,67.62]
[1672671302823,54.1871,11.116,11.107,67.62]
[1672671306803,24.1871,11.116,11.107,67.62]
[1672671309217,54.1871,11.116,11.107,67.62]
[1672671311106,121.7471,11.116,11.106,135.09417626]
[1672671311320,30.0,11.114,11.106,135.09417626]
[1672671312176,54.7359,11.114,11.106,135.09417626]
[1672671314073,24.7359,11.114,11.106,135.09417626]
[1672671316994,54.7359,11.114,11.106,135.09417626]
[1672671317204,54.7359,11.114,11.106,68.1815122]
[1672671319644,24.7359,11.114,11.106,68.1815122]
[1672671320251,24.7359,11.114,11.106,0.5515122]
[1672671320467,24.7359,11.114,11.107,67.62]
[1672671330040,24.7359,11.114,11.108,30.0]
[1672671330253,24.7359,11.114,11.109,67.61]
[1672671331305,24.7359,11.114,11.108,30.0]
[1672671331514,24.7359,11.114,11.109,67.61]
[1672671331922,24.7359,11.114,11.107,67.62]
[1672671332990,24.7359,11.114,11.108,30.0]
[1672671333299,24.7359,11.114,11.109,67.61]
[1672671334774,24.7359,11.114,11.108,67.61]
[1672671361772,24.7359,11.114,11.108,30.0]
[1672671362189,24.7359,11.114,11.107,67.62]
[1672671363788,24.2359,11.114,11.107,67.62]
[1672671381559,24.2359,11.114,11.106,68.1815122]
[1672671381866,54.2359,11.114,11.106,0.0515122]
[1672671382081,133.2324,11.114,11.107,67.62]
[1672671385014,133.2324,11.114,11.106,0.0515122]
[1672671385254,97.58,11.113,11.106,0.0515122]
[1672671385761,121.0679,11.113,11.106,0.0515122]
[1672671391840,91.0679,11.113,11.106,0.0515122]
[1672671392064,23.4879,11.113,11.106,0.0515122]
[1672671392387,30.0,11.113,11.106,0.0515122]
[1672671393541,97.58,11.113,11.106,0.0515122]
[1672671394368,131.8258,11.114,11.106,0.0515122]
[1672671394807,30.0,11.113,11.106,0.0515122]
[1672671398694,131.8258,11.114,11.106,0.0515122]
[1672671398888,30.0,11.113,11.106,0.0515122]
[1672671399851,131.8258,11.114,11.106,0.0515122]
[1672671400164,30.0,11.113,11.106,0.0515122]
[1672671415182,97.58,11.113,11.106,0.0515122]
[1672671416673,121.7455,11.113,11.106,0.0515122]
[1672671427187,54.1655,11.113,11.106,0.0515122]
[1672671432854,121.7455,11.113,11.106,0.0515122]
[1672671444311,54.1655,11.113,11.106,0.0515122]
[1672671444513,121.7455,11.113,11.106,0.0515122]
[1672671454913,91.7455,11.113,11.106,0.0515122]
[1672671455126,24.1655,11.113,11.106,0.0515122]
[1672671460586,30.0,11.112,11.106,0.0515122]
[1672671469645,121.7455,11.113,11.106,0.0515122]
[1672671469960,30.0,11.112,11.106,0.0515122]
[1672671475947,30.0,11.11,11.106,0.0515122]
[1672671476160,120.987,11.112,11.106,0.0515122]
[1672671476368,53.397,11.112,11.106,0.0515122]
[1672671497717,23.397,11.112,11.106,0.0515122]
[1672671525713,67.54,11.12,11.107,125.09061705]
[1672671525899,115.0372,11.123,11.111,30.0]
[1672671526114,67.49,11.129,11.112,87.59]
[1672671526322,30.0,11.127,11.113,30.0]
[1672671526532,67.5,11.126,11.114,67.58]
[1672671526858,67.5,11.126,11.115,30.0]
[1672671526859,30.0,11.125,11.115,30.0]
[1672671527056,188.94,11.125,11.115,216.57801544]
[1672671527269,188.94,11.125,11.117,30.0]
[1672671527491,188.94,11.125,11.116,186.57801544]
[1672671527690,158.94,11.125,11.117,93.72243827]
[1672671527899,67.5,11.126,11.118,30.0]
[1672671528120,67.49,11.129,11.12,9.21]
[1672671528320,67.47,11.131,11.121,19.93385045]
[1672671528542,180.2967,11.131,11.121,35.74115831]
[1672671528755,180.2967,11.131,11.122,15.80730786]
[1672671529068,180.2967,11.131,11.122,112.43435836]
[1672671529280,180.2967,11.131,11.123,96.6270505]
[1672671531169,180.2967,11.131,11.121,174.33095539]
[1672671531380,180.2967,11.131,11.121,19.93385045]
[1672671531996,30.0,11.13,11.121,19.93385045]
[1672671535565,67.49,11.129,11.121,19.93385045]
[1672671535903,30.0,11.128,11.121,19.93385045]
[1672671536111,30.0,11.128,11.12,20.0]
[1672671539353,30.0,11.128,11.12,35.80730786]
[1672671540105,97.48,11.13,11.12,35.80730786]
[1672671541357,67.48,11.13,11.12,35.80730786]
[1672671541577,180.2967,11.131,11.12,35.80730786]
[1672671541977,30.0,11.13,11.12,35.80730786]
[1672671542617,180.2967,11.131,11.12,131.8644128]
[1672671542830,112.8267,11.131,11.121,97.53]
[1672671543149,112.8267,11.131,11.123,30.0]
[1672671543364,112.8267,11.131,11.124,67.52]
[1672671543560,112.8267,11.131,11.125,30.0]
[1672671543890,112.8267,11.131,11.125,132.6744128]
[1672671544081,180.2967,11.131,11.126,86.86710494]
[1672671544293,30.0,11.13,11.122,20.0]
[1672671546294,112.8267,11.131,11.122,35.80730786]
[1672671547662,30.0,11.13,11.122,35.80730786]
[1672671551460,112.8267,11.131,11.123,67.52]
[1672671551871,112.8267,11.131,11.123,83.32730786]
[1672671554080,112.8267,11.131,11.123,154.47989819]
[1672671561242,112.8267,11.131,11.124,30.0]
[1672671561436,112.8267,11.131,11.125,67.51]
[1672671561646,112.8267,11.131,11.125,83.31730786]
[1672671562079,112.8267,11.131,11.125,15.80730786]
[1672671571736,112.8267,11.131,11.126,30.0]
[1672671572059,112.8267,11.131,11.126,15.80730786]
[1672671572801,67.44,11.137,11.126,159.5998363]
[1672671573002,138.3659,11.14,11.128,30.0]
[1672671573327,138.3659,11.14,11.13,30.0]
[1672671573520,138.3659,11.14,11.131,20.0]
[1672671573728,30.0,11.139,11.131,20.0]
[1672671574151,30.0,11.139,11.13,20.0]
[1672671574489,53.2159,11.139,11.13,20.0]
[1672671574893,23.2159,11.139,11.13,35.80730786]
[1672671575093,23.2159,11.139,11.131,30.0]
[1672671575303,23.2159,11.139,11.132,20.0]
[1672671581819,23.2159,11.139,11.132,87.47]
[1672671588986,23.2159,11.139,11.132,247.40306963]
[1672671589178,23.2159,11.139,11.133,30.0]
[1672671589385,23.2159,11.139,11.135,30.0]
[1672671589819,23.2159,11.139,11.134,211.58576177]
[1672671590764,23.2159,11.139,11.134,144.12576177]
[1672671591088,23.2159,11.139,11.134,71.48582366]
[1672671591722,23.2159,11.139,11.135,67.45]
[1672671591938,23.2159,11.139,11.134,71.48582366]
[1672671592655,23.2159,11.139,11.135,67.45]
[1672671593188,53.2159,11.139,11.133,67.46]
[1672671593403,53.2159,11.139,11.132,144.94061705]
[1672671594228,23.2159,11.139,11.132,144.94061705]
[1672671595586,23.2159,11.139,11.132,216.42644071]
[1672671600759,23.2159,11.139,11.132,148.95644071]
[1672671600963,23.2159,11.139,11.133,67.46]
[1672671601181,23.2159,11.139,11.132,216.42644071]
[1672671613682,23.2159,11.139,11.132,232.23374857]
[1672671615050,23.2159,11.139,11.132,304.90096934]
[1672671615261,23.2159,11.139,11.132,289.09366148]
[1672671617364,23.2159,11.139,11.132,304.90096934]
[1672671624079,23.2159,11.139,11.132,87.47]
[1672671624289,30.0,11.138,11.132,20.0]
[1672671624503,30.0,11.138,11.133,87.46]
[1672671624733,30.0,11.138,11.133,67.46]
[1672671624945,30.0,11.138,11.132,67.47]
[1672671625147,30.0,11.138,11.133,20.0]
[1672671625789,30.0,11.138,11.132,20.0]
[1672671625996,30.0,11.138,11.133,67.46]
[1672671629572,141.0265,11.139,11.133,67.46]
[1672671645983,141.0265,11.139,11.132,20.0]
[1672671651328,141.0265,11.139,11.132,92.45012077]
[1672671651752,141.0265,11.139,11.133,67.46]
[1672671657549,141.0265,11.139,11.132,92.45012077]
[1672671657763,141.0265,11.139,11.133,67.46]
[1672671658596,141.0265,11.139,11.132,92.45012077]
[1672671660285,141.0265,11.139,11.132,160.7707911]
[1672671661651,141.0265,11.139,11.133,67.46]
[1672671661978,141.0265,11.139,11.133,139.91012077]
[1672671664402,30.0,11.138,11.133,72.45012077]
[1672671665876,141.0265,11.139,11.133,72.45012077]
[1672671668274,141.0265,11.139,11.133,139.91012077]
[1672671673439,141.0265,11.139,11.133,72.45012077]
[1672671675655,141.0265,11.139,11.134,135.78067033]
[1672671676056,141.0265,11.139,11.135,72.45012077]
[1672671676264,23.2159,11.139,11.135,72.45012077]
[1672671679312,23.2159,11.139,11.134,68.32067033]
[1672671679534,23.2159,11.139,11.133,67.46]
[1672671679956,23.2159,11.139,11.134,30.0]
[1672671680157,23.2159,11.139,11.133,208.2307911]
[1672671683319,23.2159,11.139,11.133,208.15644188]
[1672671688572,23.2159,11.139,11.133,139.83577155]
[1672671688791,23.2159,11.139,11.133,67.38565078]
[1672671688987,23.2159,11.139,11.133,208.15644188]
[1672671717082,23.2159,11.139,11.133,139.83577155]
[1672671718557,23.2159,11.139,11.133,67.38565078]
[1672671728432,23.2159,11.139,11.133,139.83577155]
[1672671742511,23.2159,11.139,11.133,208.15644188]
[1672671754189,23.2159,11.139,11.133,140.7707911]
[1672671754382,30.0,11.138,11.132,20.0]
[1672671754594,30.0,11.138,11.133,20.0]
[1672671754810,30.0,11.138,11.131,20.0]
[1672671755029,30.0,11.138,11.132,67.47]
[1672671755661,30.0,11.138,11.126,48.83958591]
[1672671755662,97.43,11.138,11.118,46.19566213]
[1672671755870,30.0,11.136,11.121,0.55391158]
[1672671756100,223.7651,11.135,11.122,67.53]
[1672671756317,30.0,11.134,11.121,67.53]
[1672671756629,186.3151,11.134,11.122,0.55386178]
[1672671756945,186.3151,11.134,11.121,67.53]
[1672671756946,67.46,11.133,11.121,67.53]
[1672671757154,223.7751,11.133,11.12,67.54]
[1672671757363,186.3151,11.132,11.121,30.0]
[1672671757556,186.3151,11.132,11.122,87.53]
[1672671757980,186.3151,11.132,11.122,67.53]
[1672671759463,186.3151,11.132,11.123,20.0]
[1672671760091,186.3151,11.132,11.121,131.13248831]
[1672671760092,30.0,11.13,11.122,20.0]
[1672671760306,39.18,11.13,11.122,20.0]
[1672671760713,39.15,11.13,11.122,20.0]
[1672671762078,39.15,11.13,11.122,87.53]
[1672671763142,39.15,11.13,11.122,20.0]